bitfinex/quotes_SOLUSD_20250130
["timestamp","ask_amount","ask_price","bid_price","bid_amount"]
[1738236729836,0.25098,241.71,241.63,7.93828945]
[1738236730022,0.12549,241.69,241.63,7.93828945]
[1738236730848,83.0,241.7,241.65,7.93828945]
[1738236731343,83.0,241.7,241.59,7.93828945]
[1738236731344,0.12549,241.66,241.59,7.93828945]
[1738236731543,21.35013798,241.67,241.59,7.93828945]
[1738236731723,0.12549,241.68,241.61,7.93828945]
[1738236732556,1.0,241.54,241.48,6.47768059]
[1738236732719,7.93828945,241.52,241.48,6.47768059]
[1738236733231,0.25098,241.51,241.48,6.47768059]
[1738236733431,0.620798,241.52,241.48,6.47768059]
[1738236733642,3.840798,241.53,241.48,6.47768059]
[1738236733942,0.12549,241.52,241.48,6.47768059]
[1738236735229,0.12549,241.48,241.4,12.35630377]
[1738236735429,13.78831853,241.48,241.4,12.35630377]
[1738236735644,12.35630377,241.44,241.36,12.35630377]
[1738236736450,0.12549,241.46,241.36,12.35630377]
[1738236736656,12.48179377,241.46,241.36,12.35630377]
[1738236737358,20.0,241.43,241.36,12.35630377]
[1738236737644,12.35630377,241.38,241.28,12.35630377]
[1738236737849,12.35630377,241.36,241.28,12.35630377]
[1738236738655,0.746288,241.35,241.28,12.35630377]
[1738236738853,4.889688,241.35,241.28,12.35630377]
[1738236739353,0.12549,241.33,241.26,12.35630377]
[1738236741430,25.7681523,241.34,241.26,16.50110377]
[1738236741743,20.0,241.33,241.28,12.35630377]
[1738236742333,20.0,241.33,241.28,12.41930377]
[1738236743154,20.0,241.33,241.28,0.063]
[1738236743832,20.0,241.33,241.28,12.41930377]
[1738236744048,83.0,241.36,241.3,12.35630377]
[1738236745230,83.0,241.36,241.3,16.50030377]
[1738236747934,83.0,241.36,241.32,12.35630377]
[1738236749260,83.0,241.39,241.34,12.35630377]
[1738236749456,83.0,241.39,241.36,12.35630377]
[1738236750055,83.0,241.39,241.34,12.35630377]
[1738236750530,83.0,241.39,241.37,12.35630377]
[1738236750732,83.0,241.39,241.28,1.063]
[1738236750733,83.0,241.39,241.36,12.35630377]
[1738236750955,83.0,241.39,241.35,16.49950377]
[1738236751463,83.0,241.39,241.37,12.35630377]
[1738236753054,83.0,241.39,241.37,16.49930377]
[1738236753264,83.0,241.44,241.37,16.49930377]
[1738236753588,83.0,241.44,241.4,12.35630377]
[1738236755135,83.0,241.44,241.4,16.49860377]
[1738236756058,83.0,241.44,241.38,12.35630377]
[1738236756249,83.0,241.44,241.36,0.063]
[1738236756250,12.35630377,241.41,241.36,0.063]
[1738236756438,13.41184853,241.4,241.36,0.063]
[1738236756838,83.0,241.39,241.36,0.063]
[1738236758160,87.1426,241.39,241.36,0.063]
[1738236759065,83.0,241.39,241.36,0.063]
[1738236775873,83.0,241.39,241.36,12.12195896]
[1738236776176,83.0,241.39,241.38,7.91585896]
[1738236778371,83.0,241.39,241.36,7.97885896]
[1738236778590,83.0,241.39,241.36,0.063]
[1738236778878,13.41184853,241.38,241.36,0.063]
[1738236779177,25.47050749,241.38,241.36,0.063]
[1738236780165,21.32770749,241.38,241.36,0.063]
[1738236780562,26.53128291,241.37,241.36,0.063]
[1738236780870,26.78226291,241.37,241.36,0.063]
[1738236781583,30.92526291,241.37,241.36,0.063]
[1738236784160,31.05075291,241.37,241.36,0.063]
[1738236784861,0.12549,241.32,241.28,0.063]
[1738236785075,13.53733853,241.29,241.28,0.063]
[1738236785280,13.41184853,241.29,241.28,0.063]
[1738236786094,33.41184853,241.29,241.28,0.063]
[1738236786560,20.0,241.29,241.28,0.063]
[1738236789156,12.37314638,241.33,241.28,0.063]
[1738236789360,83.0,241.36,241.32,12.37314638]
[1738236789777,20.0,241.33,241.31,12.37314638]
[1738236790462,20.0,241.33,241.29,12.37314638]
[1738236791681,20.0,241.33,241.29,16.51744638]
[1738236791861,20.0,241.33,241.29,12.37314638]
[1738236792884,20.0,241.33,241.28,0.063]
[1738236792885,0.25098,241.31,241.28,0.063]
[1738236793261,33.41184853,241.29,241.28,0.063]
[1738236794187,20.0,241.29,241.28,0.063]
[1738236794484,83.0,241.32,241.28,0.063]
[1738236796563,83.0,241.32,241.28,4.2074]
[1738236797584,83.0,241.32,241.28,0.063]
[1738236800861,13.41184853,241.31,241.28,0.063]
[1738236801068,13.41184853,241.29,241.28,0.063]
[1738236801773,13.53733853,241.29,241.28,0.063]
[1738236803086,17.68163853,241.29,241.28,0.063]
[1738236805495,17.55614853,241.29,241.28,0.063]
[1738236810707,26.47719618,241.29,241.28,0.063]
[1738236813483,26.22621618,241.29,241.28,0.063]
[1738236814386,13.41184853,241.29,241.28,0.063]
[1738236818001,21.33562818,241.29,241.28,0.063]
[1738236820415,20.0,241.29,241.28,0.063]
[1738236820609,7.92377965,241.35,241.28,4.2075]
[1738236820792,7.92377965,241.35,241.28,12.13127965]
[1738236820989,20.0,241.33,241.28,12.13127965]
[1738236821195,13.41184853,241.34,241.28,12.13127965]
[1738236821388,13.41184853,241.34,241.28,4.2075]
[1738236823018,13.41184853,241.34,241.28,12.13127965]
[1738236823224,13.921146,241.36,241.28,12.13127965]
[1738236823225,20.0,241.33,241.29,7.92377965]
[1738236823403,20.0,241.33,241.28,7.98677965]
[1738236823589,20.0,241.33,241.28,0.063]
[1738236823992,20.0,241.33,241.28,7.98677965]
[1738236824215,20.0,241.33,241.28,12.13127965]
[1738236824497,20.0,241.33,241.28,4.2075]
[1738236826213,17.68133853,241.32,241.28,0.063]
[1738236826416,20.0,241.29,241.28,0.063]
[1738236826993,41.46111818,241.29,241.28,0.063]
[1738236827195,41.71209818,241.29,241.28,0.063]
[1738236827718,41.83758818,241.29,241.28,0.063]
[1738236828306,42.45838618,241.29,241.28,0.063]
[1738236829401,46.60268618,241.29,241.28,0.063]
[1738236833610,48.26263918,241.29,241.28,0.063]
[1738236838133,48.26263918,241.29,241.28,0.0001]
[1738236838300,50.26263918,241.29,241.28,0.0001]
[1738236838833,48.26263918,241.29,241.28,0.0001]
[1738236839006,46.60268618,241.29,241.28,0.0001]
[1738236840735,26.47719618,241.29,241.28,0.0001]
[1738236841229,26.35170618,241.29,241.28,0.0001]
[1738236841428,21.46111818,241.29,241.28,0.0001]
[1738236841834,13.53733853,241.29,241.28,0.0001]
[1738236842341,13.41184853,241.29,241.28,0.0001]
[1738236846732,91.04926965,241.33,241.28,0.0001]
[1738236847309,13.41184853,241.32,241.28,0.0001]
[1738236847816,7.92377965,241.31,241.28,0.0001]
[1738236848331,13.41184853,241.32,241.28,0.0001]
[1738236849433,13.44184853,241.32,241.28,0.0001]
[1738236850038,17.58564853,241.32,241.28,0.0001]
[1738236850642,0.03,241.32,241.28,0.0001]
[1738236850939,0.03,241.32,241.28,7.92387965]
[1738236854047,0.03,241.32,241.28,12.06837965]
[1738236856223,0.03,241.32,241.29,7.92377965]
[1738236857842,0.03,241.32,241.29,12.06807965]
[1738236858145,0.03,241.32,241.29,4.1443]
[1738236863147,0.03,241.32,241.3,7.92377965]
[1738236868917,0.03,241.32,241.31,13.94347965]
[1738236870747,0.03,241.32,241.31,18.08747965]
[1738236881861,0.03,241.32,241.29,7.92377965]
[1738236882031,0.03,241.32,241.28,4.1446]
[1738236882842,0.03,241.32,241.28,12.06837965]
[1738236885671,0.03,241.32,241.3,7.92377965]
[1738236885866,0.03,241.32,241.29,4.1443]
[1738236885867,0.03,241.32,241.31,7.92377965]
[1738236887269,0.03,241.32,241.31,39.74438825]
[1738236887464,0.03,241.32,241.31,39.99536825]
[1738236887654,0.03,241.36,241.35,8.04926965]
[1738236887846,0.03,241.36,241.35,9.17475965]
[1738236888046,0.0001,241.36,241.35,9.30024965]
[1738236888250,0.0001,241.36,241.35,9.42573965]
[1738236890571,0.0001,241.36,241.35,9.30024965]
[1738236890777,0.0001,241.36,241.35,10.82364965]
[1738236892373,0.0001,241.36,241.35,10.57266965]
[1738236892584,0.0001,241.36,241.35,9.57266965]
[1738236893262,0.0001,241.36,241.35,8.04926965]
[1738236894872,0.0001,241.36,241.35,7.92377965]
[1738236896278,0.0001,241.36,241.35,8.04926965]
[1738236896479,0.0001,241.36,241.35,13.19256965]
[1738236896850,0.0001,241.36,241.35,12.19256965]
[1738236897550,0.0001,241.36,241.35,13.44354965]
[1738236897750,0.0001,241.36,241.35,14.44354965]
[1738236898173,0.0001,241.36,241.35,13.44354965]
[1738236898350,0.0001,241.36,241.35,14.44354965]
[1738236900758,0.0001,241.36,241.35,13.19256965]
[1738236901278,0.0001,241.36,241.35,12.19256965]
[1738236901576,0.0001,241.36,241.35,13.19256965]
[1738236902173,0.0001,241.36,241.35,14.44354965]
[1738236903480,83.0,241.5,241.4,1.12549]
[1738236903655,89.2382,241.54,241.48,7.92377965]
[1738236904063,93.3783,241.54,241.48,7.92377965]
[1738236905083,89.2382,241.54,241.48,7.92377965]
[1738236905386,13.41184853,241.5,241.42,7.92377965]
[1738236905679,7.92377965,241.45,241.38,7.92377965]
[1738236908893,13.41184853,241.46,241.38,7.92377965]
[1738236909178,13.41184853,241.46,241.4,7.92377965]
[1738236909383,90.92377965,241.49,241.42,7.92377965]
[1738236909902,83.0,241.49,241.42,7.92377965]
[1738236912679,7.92377965,241.45,241.37,7.92377965]
[1738236912858,7.92377965,241.43,241.35,7.98677965]
[1738236913060,14.03264653,241.42,241.35,7.98677965]
[1738236914590,0.620798,241.42,241.41,7.92377965]
[1738236914766,25.98815278,241.53,241.41,39.74438825]
[1738236914767,0.03,241.53,241.41,39.74438825]
[1738236914973,13.44184853,241.53,241.51,7.92377965]
[1738236915173,0.03,241.53,241.51,7.92377965]
[1738236917384,0.03,241.53,241.5,7.92377965]
[1738236918593,0.03,241.53,241.5,12.35153234]
[1738236919781,0.03,241.53,241.48,12.35153234]
[1738236920373,0.03,241.53,241.49,12.35153234]
[1738236921085,0.03,241.53,241.41,0.62109135]
[1738236921293,25.76338087,241.52,241.44,12.35153234]
[1738236921761,13.41184853,241.52,241.46,12.35153234]
[1738236921961,13.41184853,241.52,241.4,20.62122243]
[1738236921962,83.0,241.51,241.47,12.35153234]
[1738236923286,83.0,241.51,241.46,12.35153234]
[1738236923586,83.0,241.51,241.45,12.35153234]
[1738236923776,83.0,241.51,241.46,12.35153234]
[1738236925298,83.0,241.51,241.47,12.35153234]
[1738236925501,83.0,241.51,241.48,12.35153234]
[1738236927073,83.0,241.51,241.47,12.35153234]
[1738236927502,83.0,241.51,241.48,12.35153234]
[1738236930000,83.0,241.51,241.47,12.35153234]
[1738236930203,83.0,241.51,241.46,12.35153234]
[1738236931377,83.0,241.51,241.45,12.35153234]
[1738236931878,99.49223234,241.51,241.43,12.35153234]
[1738236932073,12.35153234,241.49,241.41,12.35153234]
[1738236932295,108.76338087,241.48,241.4,12.35153234]
[1738236934299,96.41184853,241.48,241.41,12.35153234]
[1738236935299,83.0,241.48,241.44,12.35153234]
[1738236936907,83.0,241.48,241.45,12.35153234]
[1738236938094,83.0,241.52,241.45,12.35153234]
[1738236938998,95.35153234,241.52,241.45,12.35153234]
[1738236939198,25.88887087,241.51,241.44,12.35153234]
[1738236939418,12.35153234,241.49,241.42,12.35153234]
[1738236940090,16.49253234,241.49,241.42,12.35153234]
[1738236940291,12.35153234,241.43,241.36,0.063]
[1738236940486,7.91731481,241.39,241.36,0.063]
[1738236940919,7.91731481,241.41,241.36,0.063]
[1738236941796,7.91731481,241.42,241.36,0.063]
[1738236942510,83.0,241.44,241.36,0.063]
[1738236942731,12.3676519,241.42,241.36,0.063]
[1738236942899,95.3676519,241.44,241.37,12.3676519]
[1738236943804,95.3676519,241.44,241.36,12.4306519]
[1738236944197,95.3676519,241.44,241.36,0.063]
[1738236944403,95.3676519,241.44,241.37,12.3676519]
[1738236944812,83.0,241.44,241.38,12.3676519]
[1738236945429,95.3676519,241.49,241.41,12.3676519]
[1738236945609,83.0,241.49,241.44,12.3676519]
[1738236946527,83.0,241.49,241.43,12.3676519]
[1738236948020,95.3676519,241.52,241.44,12.3676519]
[1738236948232,0.03,241.53,241.48,12.3676519]
[1738236948430,0.03,241.53,241.46,12.3676519]
[1738236948597,12.3976519,241.53,241.45,12.3676519]
[1738236951525,12.3676519,241.52,241.45,12.3676519]
[1738236951709,12.3676519,241.51,241.43,12.3676519]
[1738236953830,12.3676519,241.52,241.44,12.3676519]
[1738236956031,95.3676519,241.52,241.45,12.3676519]
[1738236957011,83.0,241.52,241.47,12.3676519]
[1738236959026,83.0,241.52,241.45,12.3676519]
[1738236959229,83.0,241.52,241.46,12.3676519]
[1738236962245,0.03,241.53,241.5,12.3676519]
[1738236962418,0.03,241.53,241.52,12.3676519]
[1738236962738,0.03,241.53,241.52,7.90365612]
[1738236964644,0.03,241.53,241.52,12.34805393]
[1738236966033,0.03,241.53,241.52,13.34541587]
[1738236966937,0.03,241.53,241.52,12.34805393]
[1738236969643,0.03,241.53,241.52,26.26186246]
[1738236969846,0.03,241.53,241.52,13.09448702]
[1738236969847,0.0001,241.53,241.52,13.09448702]
[1738236971047,0.0001,241.53,241.52,27.88280555]
[1738236972719,0.0001,241.57,241.54,1.0]
[1738236973057,0.0001,241.57,241.56,12.34805393]
[1738236973627,0.0001,241.57,241.56,12.47354393]
[1738236974447,0.0001,241.57,241.56,12.72452393]
[1738236974631,0.0001,241.57,241.56,25.6933423]
[1738236974839,0.0001,241.57,241.56,25.07257786]
[1738236976735,0.0001,241.57,241.56,12.34805393]
[1738236979029,0.0001,241.57,241.55,12.34805393]
[1738236981728,0.0001,241.57,241.56,12.34805393]
[1738236982456,0.0001,241.57,241.56,24.82159786]
[1738236983051,0.0001,241.57,241.56,25.07257786]
[1738236986284,0.0001,241.57,241.56,24.82159786]
[1738236986433,0.0001,241.57,241.56,12.47354393]
[1738236986634,0.0001,241.57,241.56,28.02388649]
[1738236987032,0.0001,241.57,241.56,28.89563495]
[1738236988528,0.0001,241.57,241.56,8.51916495]
[1738236988732,0.0001,241.57,241.56,7.89839649]
[1738236990840,0.0001,241.57,241.55,7.89839649]
[1738236992760,0.0001,241.57,241.52,7.89839649]
[1738236993063,7.89849649,241.57,241.49,7.89839649]
[1738236993246,8.51929449,241.57,241.49,7.89839649]
[1738236993452,7.89839649,241.56,241.48,7.89839649]
[1738236993803,8.51919449,241.55,241.47,7.89839649]
[1738236994263,21.31024502,241.54,241.47,7.89839649]
[1738236994443,8.51919449,241.53,241.46,7.89839649]
[1738236994642,8.51919449,241.53,241.36,8.1647964]
[1738236994643,7.89839649,241.51,241.44,7.89839649]
[1738236994951,21.31024502,241.5,241.43,7.89839649]
[1738236995561,0.620798,241.49,241.43,7.89839649]
[1738236995860,8.51919449,241.49,241.42,7.89839649]
[1738236996048,8.51919449,241.49,241.36,1.6973]
[1738236996049,8.51919449,241.49,241.41,7.89839649]
[1738236996365,8.51919449,241.49,241.38,7.89839649]
[1738236996366,13.41184853,241.45,241.38,7.89839649]
[1738236996545,13.41184853,241.45,241.38,12.36381083]
[1738236998174,13.41184853,241.45,241.39,12.36381083]
[1738237000060,13.41184853,241.45,241.4,12.36381083]
[1738237000477,95.36381083,241.48,241.4,12.36381083]
[1738237000688,95.36381083,241.48,241.41,12.36381083]
[1738237000986,83.0,241.48,241.42,12.36381083]
[1738237001382,83.0,241.48,241.43,12.36381083]
[1738237001573,83.0,241.48,241.42,12.36381083]
[1738237005293,83.0,241.48,241.43,12.36381083]
[1738237005478,83.0,241.48,241.44,12.36381083]
[1738237008089,83.0,241.48,241.46,12.36381083]
[1738237008298,84.5279,241.55,241.47,12.36381083]
[1738237008470,0.0001,241.57,241.54,12.36381083]
[1738237008670,0.0001,241.57,241.56,12.36381083]
[1738237009204,0.0001,241.57,241.55,12.36381083]
[1738237009498,0.0001,241.57,241.56,12.36381083]
[1738237009876,0.0001,241.57,241.55,12.36381083]
[1738237010291,0.0001,241.57,241.54,12.36381083]
[1738237010797,0.0001,241.57,241.53,12.36381083]
[1738237010991,0.0001,241.57,241.56,0.063]
[1738237025799,12.34707428,241.57,241.56,0.063]
[1738237026925,113.02391281,241.57,241.56,0.063]
[1738237027321,113.14940281,241.57,241.56,0.063]
[1738237027621,108.75892281,241.57,241.56,0.063]
[1738237032426,113.27489281,241.57,241.56,0.063]
[1738237033114,30.27489281,241.57,241.56,0.063]
[1738237034305,30.40038281,241.57,241.56,0.063]
[1738237034506,31.02118081,241.57,241.56,0.063]
[1738237036638,30.64471081,241.57,241.56,0.063]
[1738237040515,26.20346359,241.57,241.56,0.063]
[1738237043741,8.52662506,241.57,241.56,0.063]
[1738237044045,0.0001,241.57,241.56,0.063]
[1738237049149,0.0001,241.57,241.56,7.96872706]
[1738237067979,0.0001,241.57,241.56,15.99994412]
[1738237068153,0.0001,241.57,241.56,39.7171253]
[1738237074384,0.0001,241.57,241.56,53.50544383]
[1738237074586,83.0,241.7,241.65,7.90572706]
[1738237075381,83.0,241.7,241.59,20.0]
[1738237075382,83.0,241.7,241.66,7.90572706]
[1738237075991,83.0,241.7,241.67,7.90572706]
[1738237077083,92.53802706,241.76,241.68,7.90572706]
[1738237077285,92.53802706,241.76,241.69,7.90572706]
[1738237078487,0.620798,241.75,241.68,7.90572706]
[1738237078690,13.41184853,241.74,241.67,7.90572706]
[1738237079189,21.31757559,241.74,241.67,7.90572706]
[1738237079667,25.45427559,241.74,241.67,7.90572706]
[1738237080490,7.90572706,241.73,241.66,7.90572706]
[1738237081280,0.620798,241.73,241.67,7.90572706]
[1738237081479,26.07507359,241.74,241.67,7.90572706]
[1738237082087,7.90572706,241.73,241.66,7.90572706]
[1738237082589,26.10507359,241.74,241.66,7.90572706]
[1738237083868,0.03,241.74,241.68,7.90572706]
[1738237085974,7.93572706,241.74,241.66,7.90572706]
[1738237086488,83.620798,241.73,241.66,7.90572706]
[1738237086793,83.0,241.73,241.66,7.90572706]
[1738237087181,83.0,241.73,241.68,7.90572706]
[1738237088291,87.757598,241.73,241.66,7.90572706]
[1738237088495,87.1368,241.73,241.66,7.90572706]
[1738237089294,0.620798,241.72,241.66,7.90572706]
[1738237092001,13.41184853,241.71,241.66,7.90572706]
[1738237092168,96.41184853,241.71,241.64,7.90572706]
[1738237092373,83.620798,241.7,241.64,7.90572706]
[1738237095607,95.66382506,241.7,241.62,7.90572706]
[1738237095775,95.04302706,241.7,241.62,7.90572706]
[1738237096112,21.31757559,241.68,241.61,0.063]
[1738237096287,8.52652506,241.67,241.61,0.063]
[1738237097481,12.66442506,241.67,241.61,0.063]
[1738237098513,7.90572706,241.64,241.61,0.063]
[1738237098712,8.52652506,241.64,241.61,0.063]
[1738237099074,0.620798,241.64,241.61,0.063]
[1738237099903,11.7327,241.67,241.61,0.063]
[1738237099904,16.12132506,241.67,241.61,0.063]
[1738237100104,1.5172,241.67,241.62,7.90572706]
[1738237100493,1.5172,241.67,241.61,7.96872706]
[1738237100710,2.137998,241.67,241.61,0.063]
[1738237101911,1.5172,241.67,241.61,0.063]
[1738237102099,1.5172,241.67,241.61,7.96872706]
[1738237103807,14.03264653,241.66,241.61,0.063]
[1738237104312,11.84908341,241.66,241.61,0.063]
[1738237105111,0.12549,241.64,241.61,0.063]
[1738237105282,0.620798,241.63,241.61,0.063]
[1738237105485,83.620798,241.63,241.61,0.063]
[1738237105783,91.52652506,241.63,241.61,0.063]
[1738237106004,90.90572706,241.63,241.61,0.063]
[1738237106502,95.04432706,241.63,241.61,0.063]
[1738237107305,90.90572706,241.63,241.61,0.063]
[1738237108403,21.93837359,241.62,241.61,0.063]
[1738237108615,22.31484359,241.62,241.61,0.063]
[1738237111095,26.45354359,241.62,241.61,0.063]
[1738237111416,21.93837359,241.62,241.61,0.063]
[1738237111786,26.07707359,241.62,241.61,0.063]
[1738237112209,21.93837359,241.62,241.61,0.063]
[1738237115324,22.06386359,241.62,241.61,0.063]
[1738237117190,0.620798,241.63,241.61,0.063]
[1738237117421,83.0,241.67,241.61,0.063]
[1738237117627,83.620798,241.67,241.61,0.063]
[1738237119098,13.53733853,241.66,241.61,0.063]
[1738237119298,13.41184853,241.64,241.61,0.063]
[1738237119506,21.31757559,241.64,241.61,0.063]
[1738237120008,0.620798,241.63,241.61,0.063]
[1738237125016,13.41184853,241.62,241.61,0.063]
[1738237128113,96.41184853,241.62,241.61,0.063]
[1738237128435,83.0,241.67,241.61,7.96872706]
[1738237129626,0.03,241.66,241.61,7.96872706]
[1738237130427,0.03,241.66,241.61,0.063]
[1738237130816,13.41184853,241.65,241.61,0.063]
[1738237131117,13.41184853,241.63,241.61,0.063]
[1738237132133,0.12549,241.64,241.61,0.063]
[1738237133734,12.04392706,241.65,241.61,0.063]
[1738237133937,7.90572706,241.65,241.61,0.063]
[1738237134137,90.90572706,241.65,241.61,0.063]
[1738237137034,101.42212653,241.64,241.61,0.063]
[1738237137335,7.90572706,241.63,241.61,0.063]
[1738237137528,14.03264653,241.62,241.61,0.063]
[1738237138727,26.45354359,241.62,241.61,0.063]
[1738237141461,14.03264653,241.62,241.61,0.063]
[1738237141736,13.41184853,241.62,241.61,0.063]
[1738237142035,7.968727,241.64,241.61,0.063]
[1738237142241,4.758998,241.65,241.61,0.063]
[1738237142410,13.53733853,241.64,241.61,0.063]
[1738237142828,7.90572706,241.62,241.61,0.063]
[1738237144214,25.58176559,241.62,241.61,0.063]
[1738237147446,25.83274559,241.62,241.61,0.063]
[1738237152142,26.57903359,241.62,241.61,0.063]
[1738237152344,28.57903359,241.62,241.61,0.0001]
[1738237152550,20.37647,241.58,241.56,0.063]
[1738237152864,22.18935359,241.57,241.56,0.063]
[1738237153558,22.31484359,241.57,241.56,0.063]
[1738237153737,26.45434359,241.57,241.56,0.063]
[1738237155048,59.20274183,241.57,241.56,0.063]
[1738237155244,59.20274183,241.57,241.43,6.3494]
[1738237155245,13.53733853,241.51,241.43,6.3494]
[1738237155465,7.90572706,241.48,241.43,6.3494]
[1738237155960,14.03264653,241.47,241.43,6.3494]
[1738237156134,14.03264653,241.47,241.41,1.528]
[1738237157759,0.12549,241.46,241.41,1.528]
[1738237157960,0.620798,241.45,241.41,1.528]
[1738237158372,0.620798,241.45,241.38,7.96872706]
[1738237159474,13.41184853,241.45,241.38,7.96872706]
[1738237163574,17.55344853,241.45,241.38,7.96872706]
[1738237163742,83.0,241.44,241.38,7.96872706]
[1738237167869,83.620798,241.44,241.38,7.96872706]
[1738237168557,96.53733853,241.43,241.38,0.063]
[1738237168757,104.56855559,241.43,241.38,0.063]
[1738237169573,104.69404559,241.43,241.38,0.063]
[1738237170177,26.96143559,241.43,241.38,0.063]
[1738237170374,8.15670706,241.39,241.38,0.063]
[1738237170563,22.18935359,241.39,241.38,0.063]
[1738237172272,26.20646359,241.39,241.38,0.063]
[1738237172475,13.41184853,241.39,241.38,0.063]
[1738237172658,7.90572706,241.44,241.38,4.2058]
[1738237172865,0.620798,241.44,241.39,7.90572706]
[1738237173266,13.41184853,241.43,241.38,7.96872706]
[1738237174360,0.620798,241.42,241.38,7.96872706]
[1738237174576,0.620798,241.43,241.38,7.96872706]
[1738237174968,0.620798,241.43,241.38,0.063]
[1738237174969,13.41184853,241.42,241.38,0.063]
[1738237175169,0.620798,241.41,241.38,0.063]
[1738237175484,0.620798,241.42,241.38,0.063]
[1738237175974,21.44306559,241.41,241.38,0.063]
[1738237176183,13.41184853,241.39,241.38,0.063]
[1738237176789,21.69404559,241.39,241.38,0.063]
[1738237177284,22.31484359,241.39,241.38,0.063]
[1738237178073,26.45744359,241.39,241.38,0.063]
[1738237180090,6.48906006,241.71,241.38,7.96872706]
[1738237180091,7.968727,241.47,241.38,7.96872706]
[1738237180295,13.41184853,241.45,241.4,7.90572706]
[1738237180671,13.41184853,241.45,241.38,12.11152706]
[1738237180893,0.620798,241.44,241.38,12.11152706]
[1738237181066,13.53733853,241.43,241.38,12.11152706]
[1738237181803,0.25098,241.44,241.38,12.11152706]
[1738237182464,0.25098,241.44,241.38,7.96872706]
[1738237183373,12.66792506,241.46,241.38,12.11142706]
[1738237183580,8.52652506,241.46,241.38,12.11142706]
[1738237184995,13.41184853,241.45,241.38,12.11142706]
[1738237185800,13.41184853,241.45,241.4,7.90572706]
[1738237186470,13.44184853,241.45,241.4,7.90572706]
[1738237201405,14.06264653,241.45,241.4,7.90572706]
[1738237201593,14.06264653,241.45,241.38,9.48652706]
[1738237202096,13.44184853,241.45,241.38,9.48652706]
[1738237202595,0.03,241.45,241.42,7.90572706]
[1738237205605,0.03,241.45,241.44,7.90572706]
[1738237207215,0.03,241.45,241.42,7.90572706]
[1738237214921,0.03,241.45,241.41,7.90572706]
[1738237216222,0.03,241.45,241.43,7.90572706]
[1738237217424,0.03,241.45,241.44,6.6527]
[1738237217721,0.03,241.45,241.44,8.2912]
[1738237218905,0.03,241.45,241.44,16.19692706]
[1738237232127,0.03,241.45,241.44,9.54422706]
[1738237232330,0.03,241.45,241.44,7.90572706]
[1738237232831,0.03,241.45,241.43,7.90572706]
[1738237234330,0.03,241.45,241.41,7.96872706]
[1738237235023,0.03,241.45,241.42,7.90572706]
[1738237236201,0.03,241.45,241.41,7.96872706]
[1738237237432,0.03,241.45,241.42,7.90572706]
[1738237237813,0.03,241.45,241.43,7.90572706]
[1738237240631,0.03,241.45,241.41,7.96872706]
[1738237245338,0.03,241.45,241.43,7.90572706]
[1738237245632,0.03,241.45,241.44,7.90572706]
[1738237246931,0.03,241.45,241.42,7.90572706]
[1738237249424,0.03,241.45,241.44,7.90572706]
[1738237253328,0.0001,241.45,241.44,39.6541253]
[1738237255247,0.03,241.56,241.47,20.0]
[1738237255430,0.03,241.56,241.52,7.90572706]
[1738237261053,0.03,241.56,241.5,7.90572706]
[1738237261749,0.03,241.56,241.48,7.90572706]
[1738237261750,13.41184853,241.55,241.48,7.90572706]
[1738237262757,7.90572706,241.54,241.48,7.90572706]
[1738237263554,7.90572706,241.54,241.46,7.90572706]
[1738237263848,7.90572706,241.53,241.46,7.90572706]
[1738237264068,7.90572706,241.51,241.44,7.90572706]
[1738237264245,7.90572706,241.49,241.42,7.90572706]
[1738237266345,7.90572706,241.5,241.42,7.90572706]
[1738237266748,13.41184853,241.5,241.44,7.90572706]
[1738237267057,13.41184853,241.5,241.45,7.90572706]
[1738237267736,9.56002706,241.56,241.49,7.90572706]
[1738237267938,21.31757559,241.55,241.48,7.90572706]
[1738237268135,21.31757559,241.55,241.47,7.90572706]
[1738237268957,21.31757559,241.55,241.48,7.90572706]